fUST/lending_fUST_20250222
["ID","MTS","AMOUNT","RATE_DAILY","PERIOD"]
[353963149,1740168634519,-332.31114467,0.00013698,2]
[353963151,1740168634528,-500.0,0.00013698,2]
[353963153,1740168634537,-500.0,0.00013698,2]
[353963155,1740168634547,-507.65741101,0.00013698,2]
[353963157,1740168634556,-500.0,0.00013698,2]
[353963159,1740168634566,-500.0,0.00013698,2]
[353963161,1740168634575,-500.0,0.00013698,2]
[353963163,1740168634585,-500.0,0.00013698,2]
[353963165,1740168634594,-500.0,0.00013698,2]
[353963166,1740168634603,-500.0,0.00013698,2]
[353963168,1740168634613,-500.0,0.00013698,2]
[353963171,1740168634623,-500.0,0.00013698,2]
[353963173,1740168634633,-500.0,0.00013698,2]
[353963175,1740168634643,-500.0,0.00013698,2]
[353963177,1740168634652,-500.0,0.00013698,2]
[353963179,1740168634662,-500.0,0.00013698,2]
[353963180,1740168634671,-500.0,0.00013698,2]
[353963182,1740168634681,-500.0,0.00013698,2]
[353963185,1740168634691,-500.0,0.00013698,2]
[353963187,1740168634700,-500.0,0.00013698,2]
[353963189,1740168634709,-500.0,0.00013698,2]
[353963191,1740168634735,-500.0,0.00013698,2]
[353963193,1740168634745,-500.0,0.00013698,2]
[353963195,1740168634754,-500.0,0.00013698,2]
[353963197,1740168634763,-406.32789241,0.00013698,2]
[353963198,1740168634772,-500.0,0.00013698,2]
[353963200,1740168634782,-500.0,0.00013698,2]
[353963202,1740168634791,-500.0,0.00013698,2]
[353963204,1740168634800,-500.0,0.00013698,2]
[353963206,1740168634808,-500.0,0.00013698,2]
[353963208,1740168634818,-500.0,0.00013698,2]
[353963210,1740168634827,-500.0,0.00013698,2]
[353963212,1740168634837,-500.0,0.00013698,2]
[353963214,1740168634846,-500.0,0.00013698,2]
[353963216,1740168634855,-500.0,0.00013698,2]
[353963218,1740168634864,-167.1926042,0.00013698,2]
[353963220,1740168634873,-500.0,0.00013698,2]
[353963222,1740168634883,-500.0,0.00013698,2]
[353963224,1740168634892,-500.0,0.00013698,2]
[353963226,1740168634900,-500.0,0.00013698,2]
[353963228,1740168634909,-500.0,0.00013698,2]
[353963230,1740168634919,-500.0,0.00013698,2]
[353963232,1740168634928,-500.0,0.00013698,2]
[353963234,1740168634937,-500.0,0.00013698,2]
[353963236,1740168634946,-500.0,0.00013698,2]
[353963238,1740168634956,-500.0,0.00013698,2]
[353963240,1740168634966,-500.0,0.00013698,2]
[353963242,1740168634976,-500.0,0.00013698,2]
[353963244,1740168634985,-500.0,0.00013698,2]
[353963246,1740168634995,-500.80214236,0.00013698,2]
[353963248,1740168635005,-501.37385043,0.00013698,2]
[353963250,1740168635014,-500.0,0.00013698,2]
[353963252,1740168635023,-500.0,0.00013698,2]
[353963254,1740168635034,-500.0,0.00013698,2]
[353963256,1740168635049,-500.0,0.00013698,2]
[353963258,1740168635058,-462.87310013,0.00013698,2]
[353963260,1740168635067,-505.14984609,0.00013698,2]
[353963262,1740168635076,-500.0,0.00013698,2]
[353963264,1740168635086,-150.10184081,0.00013698,2]
[353963266,1740168635096,-500.0,0.00013698,2]
[353963268,1740168635109,-277.3124148,0.00013698,2]
[353963270,1740168635119,-500.0,0.00013698,2]
[353963272,1740168635128,-500.0,0.00013698,2]
[353963274,1740168635139,-500.0,0.00013698,2]
[353963276,1740168635148,-222.49766835,0.00013698,2]
[353963278,1740168635159,-500.0,0.00013698,2]
[353963280,1740168635168,-500.0,0.00013698,2]
[353963282,1740168635178,-500.0,0.00013698,2]
[353963284,1740168635188,-500.0,0.00013698,2]
[353963286,1740168635197,-500.0,0.00013698,2]
[353963288,1740168635206,-500.0,0.00013698,2]
[353963290,1740168635224,-559.93041302,0.00013698,2]
[353963292,1740168635234,-500.0,0.00013698,2]
[353963294,1740168635245,-500.0,0.00013698,2]
[353963296,1740168635255,-500.0,0.00013698,2]
[353963298,1740168635264,-500.0,0.00013698,2]
[353963300,1740168635273,-500.0,0.00013698,2]
[353963302,1740168635283,-233.7212932,0.00013699,2]
[353963304,1740168635292,-241.321003,0.00013699,2]
[353963306,1740168635301,-1866.85,0.00013779,2]
[353963308,1740168635311,-10694.54884098,0.0001378,5]
[353963310,1740168635320,-37571.14421792,0.0001378,5]
[353963312,1740168635329,-500.0,0.0001378,2]
[353963314,1740168635339,-500.0,0.0001378,2]
[353963316,1740168635347,-500.0,0.0001378,2]
[353963318,1740168635358,-500.0,0.0001378,2]
[353963320,1740168635367,-500.0,0.0001378,2]
[353963322,1740168635376,-500.0,0.0001378,2]
[353963324,1740168635386,-500.0,0.0001378,2]
[353963326,1740168635395,-500.0,0.0001378,2]
[353963328,1740168635407,-500.0,0.0001378,2]
[353963330,1740168635422,-630.69117156,0.0001378,2]
[353963332,1740168635432,-500.0,0.0001378,2]
[353963334,1740168635441,-291.61299902,0.0001378,2]
[353963336,1740168635451,-1196.22,0.0001378,2]
[353963338,1740168635460,-504.17019247,0.0001378,2]
[353963340,1740168635473,-500.0,0.0001378,2]
[353963342,1740168635483,-500.0,0.0001378,2]
[353963344,1740168635492,-500.0,0.0001378,2]
[353963346,1740168635502,-500.0,0.0001378,2]
[353963348,1740168635512,-245.00949847,0.0001378,2]
[353963350,1740168635521,-500.0,0.0001378,2]
[353963352,1740168635530,-500.0,0.0001378,2]
[353963354,1740168635540,-500.0,0.0001378,2]
[353963356,1740168635551,-500.0,0.0001378,2]
[353963358,1740168635561,-500.0,0.0001378,2]
[353963360,1740168635571,-500.0,0.0001378,2]
[353963362,1740168635580,-500.0,0.0001378,2]
[353963364,1740168635590,-500.0,0.0001378,2]
[353963366,1740168635600,-500.0,0.0001378,2]
[353963368,1740168635608,-500.0,0.0001378,2]
[353963370,1740168635617,-500.0,0.0001378,2]
[353963372,1740168635626,-500.0,0.0001378,2]
[353963374,1740168635636,-500.0,0.0001378,2]
[353963376,1740168635645,-500.0,0.0001378,2]
[353963378,1740168635654,-500.0,0.0001378,2]
[353963380,1740168635663,-500.0,0.0001378,2]
[353963382,1740168635672,-500.0,0.0001378,2]
[353963384,1740168635682,-500.0,0.0001378,2]
[353963386,1740168635691,-500.0,0.0001378,2]
[353963388,1740168635700,-500.0,0.0001378,2]
[353963390,1740168635714,-500.0,0.0001378,2]
[353963392,1740168635723,-500.0,0.0001378,2]
[353963394,1740168635732,-500.0,0.0001378,2]
[353963396,1740168635741,-500.0,0.0001378,2]
[353963398,1740168635750,-500.0,0.0001378,2]
[353963400,1740168635759,-500.0,0.0001378,2]
[353963402,1740168635768,-500.0,0.0001378,2]
[353963403,1740168635777,-572.22,0.0001378,2]
[353963406,1740168635787,-500.0,0.0001378,2]
[353963408,1740168635797,-3350.86,0.0001378,2]
[353963410,1740168635807,-808.73,0.0001378,2]
[353963412,1740168635816,-500.0,0.0001378,2]
[353963414,1740168635825,-500.0,0.0001378,2]
[353963416,1740168635835,-670.44,0.0001378,2]
[353963418,1740168635844,-500.0,0.0001378,2]
[353963420,1740168635853,-500.0,0.0001378,2]
[353963422,1740168635862,-500.0,0.0001378,2]
[353963424,1740168635871,-500.0,0.0001378,2]
[353963426,1740168635881,-500.0,0.0001378,2]
[353963428,1740168635890,-500.0,0.0001378,2]
[353963430,1740168635900,-500.0,0.0001378,2]
[353963432,1740168635909,-500.0,0.0001378,2]
[353963434,1740168635919,-500.0,0.0001378,2]
[353963436,1740168635928,-500.0,0.0001378,2]
[353963438,1740168635937,-500.0,0.0001378,2]
[353963440,1740168635947,-421.3,0.0001378,2]
[353963442,1740168635956,-500.0,0.0001378,2]
[353963444,1740168635967,-500.0,0.0001378,2]
[353963446,1740168635976,-500.0,0.0001378,2]
[353963448,1740168635985,-551.72482616,0.0001378,2]
[353963450,1740168635995,-500.0,0.0001378,2]
[353963452,1740168636004,-500.0,0.0001378,2]
[353963454,1740168636014,-476.10325207,0.0001378,2]
[353963456,1740168636023,-500.0,0.0001378,2]
[353963458,1740168636033,-500.0,0.0001378,2]
[353963460,1740168636042,-500.0,0.0001378,2]
[353963462,1740168636051,-500.0,0.0001378,2]
[353963464,1740168636061,-500.0,0.0001378,2]
[353963466,1740168636070,-500.0,0.0001378,2]
[353963468,1740168636079,-500.0,0.0001378,2]
[353963470,1740168636088,-500.0,0.0001378,2]
[353963472,1740168636101,-500.0,0.0001378,2]
[353963474,1740168636110,-500.0,0.0001378,2]
[353963476,1740168636120,-500.0,0.0001378,2]
[353963478,1740168636129,-500.0,0.0001378,2]
[353963480,1740168636142,-500.0,0.0001378,2]
[353963482,1740168636151,-500.0,0.0001378,2]
[353963484,1740168636160,-382.76,0.0001378,2]
[353963486,1740168636170,-500.0,0.0001378,2]
[353963488,1740168636181,-500.0,0.0001378,2]
[353963490,1740168636190,-500.0,0.0001378,2]
[353963492,1740168636200,-500.0,0.0001378,2]
[353963494,1740168636209,-500.0,0.0001378,2]
[353963496,1740168636218,-500.0,0.0001378,2]
[353963498,1740168636227,-500.0,0.0001378,2]
[353963500,1740168636236,-500.0,0.0001378,2]
[353963502,1740168636246,-500.0,0.0001378,2]
[353963504,1740168636255,-500.0,0.0001378,2]
[353963506,1740168636265,-500.0,0.0001378,2]
[353963508,1740168636274,-500.0,0.00013862,2]
[353963510,1740168636283,-500.0,0.00013863,2]
[353963512,1740168636292,-500.0,0.00013863,2]
[353963514,1740168636301,-500.0,0.00013863,2]
[353963516,1740168636310,-1196.22,0.00013863,2]
[353963518,1740168636320,-500.0,0.00013863,2]
[353963520,1740168636330,-500.0,0.00013863,2]
[353963522,1740168636338,-500.0,0.00013863,2]
[353963524,1740168636348,-500.0,0.00013863,2]
[353963526,1740168636357,-500.0,0.00013863,2]
[353963528,1740168636366,-500.0,0.00013863,2]
[353963530,1740168636375,-500.0,0.00013863,2]
[353963532,1740168636384,-500.0,0.00013863,2]
[353963533,1740168636393,-500.0,0.00013863,2]
[353963535,1740168636402,-500.0,0.00013863,2]
[353963537,1740168636411,-500.0,0.00013863,2]
[353963539,1740168636420,-572.22,0.00013863,2]
[353963540,1740168636429,-500.0,0.00013863,2]
[353963541,1740168636438,-3350.86,0.00013863,2]
[353963542,1740168636448,-808.73,0.00013863,2]
[353963543,1740168636458,-500.0,0.00013863,2]
[353963544,1740168636469,-500.0,0.00013863,2]
[353963545,1740168636478,-670.44,0.00013863,2]
[353963546,1740168636487,-500.0,0.00013863,2]
[353963547,1740168636497,-251.62,0.00013863,2]
[353963548,1740168636506,-500.0,0.00013863,2]
[353963549,1740168636516,-638.72,0.00013863,2]
[353963550,1740168636525,-500.0,0.00013863,2]
[353963551,1740168636534,-256.69,0.00013863,2]
[353963552,1740168636544,-500.0,0.00013863,2]
[353963553,1740168636554,-500.0,0.00013863,2]
[353963554,1740168636565,-500.0,0.00013863,2]
[353963555,1740168636575,-500.0,0.00013863,2]
[353963556,1740168636586,-500.0,0.00013863,2]
[353963557,1740168636596,-502.79605824,0.00013863,2]
[353963558,1740168636607,-500.0,0.00013863,2]
[353963559,1740168636616,-500.0,0.00013863,2]
[353963560,1740168636625,-500.0,0.00013863,2]
[353963561,1740168636635,-500.0,0.00013863,2]
[353963562,1740168636645,-500.0,0.00013863,2]
[353963563,1740168636655,-500.0,0.00013863,2]
[353963564,1740168636664,-500.0,0.00013863,2]
[353963565,1740168636673,-500.0,0.00013863,2]
[353963566,1740168636683,-500.0,0.00013863,2]
[353963567,1740168636692,-252.55834007,0.00013863,2]
[353963655,1740168637839,-500.0,0.00013698,2]
[353963657,1740168637848,-935.87,0.00013698,2]
[353963659,1740168637858,-64.13,0.00013698,2]
[353963662,1740168637870,-435.87,0.00013698,2]
[353963664,1740168637880,-500.0,0.00013698,2]
[353963666,1740168637889,-500.0,0.00013698,2]
[353963668,1740168637898,-935.87,0.0001378,2]
[353963670,1740168637908,-455.09280904,0.0001378,2]
[353963672,1740168637918,-500.0,0.00013862,2]
[353963674,1740168637927,-500.0,0.00013862,2]
[353963676,1740168637937,-500.0,0.00013862,2]
[353963678,1740168637946,-484.437104,0.00013862,2]
[353963682,1740168637957,-500.0,0.00013862,2]
[353963685,1740168637966,-500.0,0.00013862,2]
[353963688,1740168637976,-500.0,0.00013862,2]
[353963690,1740168637985,-500.0,0.00013862,2]
[353963692,1740168637994,-500.0,0.00013862,2]
[353963694,1740168638003,-500.0,0.00013862,2]
[353963696,1740168638012,-500.0,0.00013862,2]
[353963698,1740168638022,-500.0,0.00013862,2]
[353963700,1740168638031,-500.0,0.00013862,2]
[353963702,1740168638040,-229.6751783,0.00013862,2]
[353963704,1740168638052,-300.3248217,0.00013862,2]
[353963706,1740168638062,-500.0,0.00013862,2]
[353963708,1740168638071,-500.0,0.00013862,2]
[353963710,1740168638081,-500.0,0.00013862,2]
[353963712,1740168638090,-500.0,0.00013862,2]
[353963714,1740168638104,-500.0,0.00013862,2]
[353963716,1740168638113,-308.67632297,0.00013862,2]
[353963718,1740168638125,-191.32367703,0.00013862,2]
[353963720,1740168638134,-500.0,0.00013862,2]
[353963722,1740168638146,-500.0,0.00013862,2]
[353963725,1740168638155,-500.0,0.00013862,2]
[353963727,1740168638165,-247.44165993,0.00013863,2]
[353963728,1740168638174,-500.0,0.00013863,2]
[353963730,1740168638185,-500.0,0.00013863,2]
[353963732,1740168638194,-500.0,0.00013863,2]
[353963734,1740168638204,-935.87,0.00013863,2]
[353963736,1740168638213,-270.10453994,0.00013898,2]
[353963739,1740168638223,-500.0,0.00013922,2]
[353963741,1740168638232,-500.0,0.00013928,2]
[353963743,1740168638242,-1866.85,0.00013944,2]
[353963744,1740168638251,-500.0,0.00013945,2]
[353963747,1740168638261,-500.0,0.00013945,2]
[353963749,1740168638270,-571.02511724,0.00013945,2]
[353963751,1740168638279,-500.0,0.00013945,2]
[353963753,1740168638288,-500.0,0.00013945,2]
[353963755,1740168638297,-500.0,0.00013945,2]
[353963757,1740168638306,-500.0,0.00013945,2]
[353963759,1740168638316,-253.15,0.00013945,2]
[353963761,1740168638325,-572.22,0.00013945,2]
[353963763,1740168638334,-3350.86,0.00013945,2]
[353963765,1740168638344,-808.73,0.00013945,2]
[353963766,1740168638353,-500.0,0.00013945,2]
[353963768,1740168638363,-500.0,0.00013945,2]
[353963770,1740168638372,-670.44,0.00013945,2]
[353963772,1740168638381,-500.0,0.00013945,2]
[353963774,1740168638391,-500.0,0.00013945,2]
[353963777,1740168638401,-500.0,0.00013945,2]
[353963779,1740168638411,-500.0,0.00013945,2]
[353963781,1740168638420,-500.0,0.00013945,2]
[353963783,1740168638429,-500.0,0.00013945,2]
[353963785,1740168638439,-500.0,0.00013945,2]
[353963787,1740168638448,-500.0,0.00013945,2]
[353963788,1740168638457,-500.0,0.00013945,2]
[353963790,1740168638468,-500.0,0.00013945,2]
[353963792,1740168638478,-500.0,0.00013945,2]
[353963794,1740168638487,-500.0,0.00013945,2]
[353963796,1740168638496,-500.0,0.00013945,2]
[353963799,1740168638506,-503.83248927,0.00013945,2]
[353963800,1740168638515,-310.71,0.00013945,2]
[353963803,1740168638524,-500.0,0.00013945,2]
[353963805,1740168638534,-500.0,0.00013945,2]
[353963807,1740168638543,-935.87,0.00013945,2]
[353963809,1740168638553,-151.0,0.00014,2]
[353963811,1740168638563,-500.0,0.00014027,2]
[353963813,1740168638573,-500.0,0.00014027,2]
[353963815,1740168638583,-500.0,0.00014027,2]
[353963817,1740168638593,-500.0,0.00014027,2]
[353963819,1740168638603,-500.0,0.00014027,2]
[353963821,1740168638612,-572.22,0.00014027,2]
[353963823,1740168638621,-3350.86,0.00014027,2]
[353963825,1740168638631,-808.73,0.00014027,2]
[353963827,1740168638640,-500.0,0.00014027,2]
[353963829,1740168638650,-500.0,0.00014027,2]
[353963831,1740168638659,-670.44,0.00014027,2]
[353963833,1740168638669,-500.0,0.00014027,2]
[353963835,1740168638678,-500.0,0.00014027,2]
[353963837,1740168638688,-500.0,0.00014027,2]
[353963839,1740168638697,-500.0,0.00014027,2]
[353963841,1740168638706,-500.0,0.00014027,2]
[353963843,1740168638716,-500.0,0.00014027,2]
[353963845,1740168638725,-357.52885533,0.00014027,2]
[353963847,1740168638735,-281.56,0.00014027,2]
[353963849,1740168638744,-500.0,0.00014027,2]
[353963851,1740168638754,-500.0,0.00014027,2]
[353963853,1740168638763,-500.0,0.00014027,2]
[353963855,1740168638773,-500.0,0.00014027,2]
[353963857,1740168638782,-500.0,0.00014027,2]
[353963859,1740168638792,-500.0,0.00014027,2]
[353963861,1740168638802,-935.87,0.00014027,2]
[353963863,1740168638812,-500.0,0.00014109,2]
[353963865,1740168638822,-188.39,0.00014109,2]
[353963867,1740168638831,-500.0,0.00014109,2]
[353963869,1740168638840,-500.0,0.00014109,2]
[353963871,1740168638849,-500.0,0.00014109,2]
[353963873,1740168638859,-572.22,0.00014109,2]
[353963875,1740168638868,-3350.86,0.00014109,2]
[353963877,1740168638878,-808.73,0.00014109,2]
[353963879,1740168638887,-500.0,0.00014109,2]
[353963881,1740168638896,-500.0,0.00014109,2]
[353963883,1740168638905,-670.44,0.00014109,2]
[353963885,1740168638915,-500.0,0.00014109,2]
[353963887,1740168638924,-500.0,0.00014109,2]
[353963889,1740168638933,-500.0,0.00014109,2]
[353963891,1740168638943,-500.0,0.00014109,2]
[353963893,1740168638953,-500.0,0.00014109,2]
[353963895,1740168638962,-500.0,0.00014109,2]
[353963897,1740168638971,-500.0,0.00014109,2]
[353963899,1740168638980,-500.0,0.00014109,2]
[353963901,1740168638989,-500.0,0.00014109,2]
[353963903,1740168638998,-500.0,0.00014109,2]
[353963905,1740168639007,-500.0,0.00014109,2]
[353963907,1740168639017,-500.0,0.00014109,2]
[353963909,1740168639028,-935.87,0.00014109,2]
[353963911,1740168639037,-586.30716793,0.00014191,2]
[353963913,1740168639046,-500.0,0.00014191,2]
[353963915,1740168639056,-500.0,0.00014191,2]
[353963917,1740168639065,-500.0,0.00014191,2]
[353963919,1740168639075,-572.22,0.00014191,2]
[353963922,1740168639084,-3350.86,0.00014191,2]
[353963923,1740168639093,-808.73,0.00014191,2]
[353963925,1740168639104,-500.0,0.00014191,2]
[353963927,1740168639116,-500.0,0.00014191,2]
[353963929,1740168639125,-670.44,0.00014191,2]
[353963931,1740168639134,-191.58201635,0.00014191,2]
[353963933,1740168639145,-500.0,0.00014191,2]
[353963936,1740168639154,-290.1420502,0.00014191,2]
[353963938,1740168639164,-500.0,0.00014191,2]
[353963940,1740168639173,-500.0,0.00014191,2]
[353963942,1740168639184,-500.0,0.00014191,2]
[353963944,1740168639194,-500.0,0.00014191,2]
[353963946,1740168639203,-500.0,0.00014191,2]
[353963948,1740168639212,-500.0,0.00014191,2]
[353963950,1740168639221,-500.0,0.00014191,2]
[353963952,1740168639230,-500.0,0.00014191,2]
[353963954,1740168639239,-259.88,0.00014191,2]
[353963956,1740168639249,-935.87,0.00014191,2]
[353963958,1740168639258,-500.0,0.00014221,2]
[353963960,1740168639268,-1866.85,0.00014272,2]
[353963962,1740168639277,-500.0,0.00014273,2]
[353963964,1740168639287,-173.15,0.00014273,2]
[353963966,1740168639295,-500.0,0.00014273,2]
[353963968,1740168639304,-572.22,0.00014273,2]
[353963970,1740168639314,-3350.86,0.00014273,2]
[353963972,1740168639323,-808.73,0.00014273,2]
[353963974,1740168639332,-326.54,0.00014273,2]
[353963976,1740168639341,-500.0,0.00014273,2]
[353963977,1740168639350,-670.44,0.00014273,2]
[353963981,1740168639359,-630.71,0.00014273,2]
[353963982,1740168639369,-500.0,0.00014273,2]
[353963984,1740168639378,-500.0,0.00014273,2]
[353963986,1740168639387,-500.0,0.00014273,2]
[353963989,1740168639397,-500.0,0.00014273,2]
[353963991,1740168639406,-500.0,0.00014273,2]
[353963995,1740168639415,-500.0,0.00014273,2]
[353963997,1740168639424,-237.66,0.00014273,2]
[353963999,1740168639434,-500.0,0.00014273,2]
[353964001,1740168639443,-935.87,0.00014273,2]
[353964002,1740168639452,-500.0,0.00014356,2]
[353964005,1740168639461,-500.0,0.00014356,2]
[353964007,1740168639471,-572.22,0.00014356,2]
[353964009,1740168639480,-3350.86,0.00014356,2]
[353964011,1740168639489,-808.73,0.00014356,2]
[353964013,1740168639498,-500.0,0.00014356,2]
[353964015,1740168639508,-670.44,0.00014356,2]
[353964017,1740168639517,-500.0,0.00014356,2]
[353964019,1740168639526,-500.0,0.00014356,2]
[353964021,1740168639535,-500.0,0.00014356,2]
[353964023,1740168639544,-500.0,0.00014356,2]
[353964025,1740168639554,-500.0,0.00014356,2]
[353964027,1740168639563,-500.0,0.00014356,2]
[353964029,1740168639572,-500.0,0.00014356,2]
[353964032,1740168639581,-935.87,0.00014356,2]
[353964034,1740168639594,-214.24172056,0.00014398,2]
[353964036,1740168639604,-151.0,0.000144,2]
[353964039,1740168639613,-500.0,0.00014438,2]
[353964041,1740168639622,-500.0,0.00014438,2]
[353964043,1740168639632,-572.22,0.00014438,2]
[353964045,1740168639641,-3350.86,0.00014438,2]
[353964047,1740168639651,-808.73,0.00014438,2]
[353964049,1740168639660,-500.0,0.00014438,2]
[353964051,1740168639670,-670.44,0.00014438,2]
[353964053,1740168639679,-500.0,0.00014438,2]
[353964055,1740168639688,-500.0,0.00014438,2]
[353964057,1740168639697,-500.0,0.00014438,2]
[353964059,1740168639707,-500.0,0.00014438,2]
[353964061,1740168639717,-500.0,0.00014438,2]
[353964063,1740168639726,-500.0,0.00014438,2]
[353964065,1740168639735,-500.0,0.00014438,2]
[353964067,1740168639745,-935.87,0.00014438,2]
[353964069,1740168639755,-288.60048682,0.00014446,2]
[353964071,1740168639764,-7438.69753278,0.00014454,2]
[353964073,1740168639775,-396.0,0.00014498,2]
[353964075,1740168639784,-1866.85,0.00014519,2]
[353964077,1740168639793,-500.0,0.0001452,2]
[353964079,1740168639802,-500.0,0.0001452,2]
[353964081,1740168639811,-572.22,0.0001452,2]
[353964083,1740168639820,-3350.86,0.0001452,2]
[353964085,1740168639830,-61.95709119,0.0001452,2]
[353964087,1740168639843,-746.77290881,0.0001452,2]
[353964089,1740168639852,-500.0,0.0001452,2]
[353964091,1740168639861,-670.44,0.0001452,2]
[353964093,1740168639871,-631.59,0.0001452,2]
[353964095,1740168639880,-500.0,0.0001452,2]
[353964097,1740168639889,-500.0,0.0001452,2]
[353964099,1740168639898,-500.0,0.0001452,2]
[353964101,1740168639907,-500.0,0.0001452,2]
[353964103,1740168639917,-500.0,0.0001452,2]
[353964105,1740168639926,-500.0,0.0001452,2]
[353964107,1740168639936,-935.87,0.0001452,2]
[353964109,1740168639946,-261.539,0.00014525,2]
[353964112,1740168639955,-169.48170849,0.00014525,2]
[353964114,1740168639966,-500.0,0.00014545,2]
[353964116,1740168639975,-500.0,0.00014545,2]
[353964117,1740168639984,-1866.85,0.00014545,2]
[353964119,1740168639993,-500.0,0.00014546,2]
[353964122,1740168640003,-500.0,0.00014546,2]
[353964124,1740168640012,-500.0,0.00014546,2]
[353964126,1740168640022,-503.23280016,0.00014546,2]
[353964127,1740168640031,-500.0,0.00014546,2]
[353964130,1740168640041,-500.0,0.00014546,2]
[353964132,1740168640050,-500.0,0.00014546,2]
[353964134,1740168640059,-500.0,0.00014546,2]
[353964136,1740168640068,-500.0,0.00014546,2]
[353964138,1740168640078,-500.0,0.00014546,2]
[353964140,1740168640087,-500.0,0.00014546,2]
[353964142,1740168640097,-500.0,0.00014546,2]
[353964143,1740168640110,-500.0,0.00014546,2]
[353964146,1740168640120,-500.0,0.00014546,2]
[353964147,1740168640129,-500.0,0.00014546,2]
[353964149,1740168640138,-190.12675084,0.00014546,2]
[353964152,1740168640149,-526.43,0.00014546,2]
[353964154,1740168640159,-500.0,0.00014546,2]
[353964156,1740168640168,-500.0,0.00014546,2]
[353964157,1740168640177,-500.0,0.00014546,2]
[353964168,1740168640271,-500.0,0.00014546,2]
[353964170,1740168640281,-500.0,0.00014546,2]
[353964172,1740168640291,-500.0,0.00014546,2]
[353964174,1740168640300,-500.68596423,0.00014546,2]
[353964176,1740168640309,-500.0,0.00014546,2]
[353964178,1740168640319,-500.0,0.00014546,2]
[353964180,1740168640328,-500.0,0.00014546,2]
[353964183,1740168640339,-502.70613339,0.00014546,2]
[353964184,1740168640348,-500.0,0.00014546,2]
[353964186,1740168640357,-500.0,0.00014546,2]
[353964189,1740168640367,-507.38713816,0.00014546,2]
[353964191,1740168640376,-270.37021015,0.00014546,2]
[353964193,1740168640385,-500.0,0.00014546,2]
[353964195,1740168640395,-500.0,0.00014546,2]
[353964197,1740168640404,-500.0,0.00014546,2]
[353964198,1740168640413,-500.0,0.00014546,2]
[353964200,1740168640422,-500.0,0.00014546,2]
[353964203,1740168640431,-500.0,0.00014546,2]
[353964205,1740168640441,-500.0,0.00014546,2]
[353964207,1740168640450,-356.3221437,0.00014546,2]
[353964209,1740168640459,-500.0,0.00014546,2]
[353964211,1740168640470,-500.0,0.00014546,2]
[353964213,1740168640480,-500.0,0.00014546,2]
[353964215,1740168640488,-500.0,0.00014546,2]
[353964217,1740168640498,-1866.85,0.00014601,2]
[353964219,1740168640507,-500.0,0.00014602,2]
[353964221,1740168640516,-572.22,0.00014602,2]
[353964223,1740168640526,-3350.86,0.00014602,2]
[353964224,1740168640536,-808.73,0.00014602,2]